bitfinex/quotes_SOLUSD_20241117
["timestamp","ask_amount","ask_price","bid_price","bid_amount"]
[1731811372244,0.5237805,214.51,214.48,15.64445869]
[1731811372445,0.5237805,214.51,214.49,15.64445869]
[1731811372656,0.5237805,214.51,214.47,15.64445869]
[1731811372946,0.5237805,214.51,214.47,36.3192]
[1731811373357,0.5237805,214.51,214.47,51.96365869]
[1731811373560,0.5237805,214.51,214.47,16.3192]
[1731811375347,0.5237805,214.51,214.47,15.64445869]
[1731811377960,0.5237805,214.51,214.48,4.6624]
[1731811378557,16.16823919,214.51,214.47,16.3187]
[1731811378986,0.5237805,214.51,214.47,16.3187]
[1731811379872,0.5237805,214.51,214.47,15.64445869]
[1731811381180,0.5237805,214.51,214.46,15.64445869]
[1731811381355,0.5237805,214.51,214.47,16.3192]
[1731811382987,0.5237805,214.51,214.47,11.6566]
[1731811384953,16.16823919,214.51,214.47,11.6566]
[1731811385167,15.64445869,214.49,214.44,4.6631]
[1731811385372,15.64445869,214.46,214.43,11.6585]
[1731811385560,15.64445869,214.47,214.43,16.322]
[1731811385758,15.64445869,214.48,214.43,16.322]
[1731811386664,15.64445869,214.48,214.43,11.6585]
[1731811387581,15.64445869,214.5,214.43,27.30295869]
[1731811387788,0.5237805,214.51,214.43,27.30295869]
[1731811388657,0.5237805,214.51,214.43,31.96645869]
[1731811389690,0.5237805,214.51,214.44,0.12549]
[1731811389893,0.5237805,214.51,214.45,15.64445869]
[1731811391460,0.5237805,214.51,214.46,20.0]
[1731811392073,0.5237805,214.51,214.47,16.3192]
[1731811394286,0.5237805,214.51,214.48,24.027864]
[1731811394463,0.5237805,214.51,214.48,20.12549]
[1731811394865,16.3757,214.64,214.53,0.09367462]
[1731811395099,16.3757,214.64,214.59,20.0]
[1731811395585,6.4012,214.66,214.6,15.64445869]
[1731811395889,4.09006389,214.72,214.6,15.64445869]
[1731811396102,15.64445869,214.68,214.64,43.17709012]
[1731811396299,15.64445869,214.68,214.64,47.83599012]
[1731811396601,15.64445869,214.68,214.65,43.17709012]
[1731811396784,15.64445869,214.68,214.66,57.5694535]
[1731811397587,15.64445869,214.68,214.64,4.6589]
[1731811397788,15.64445869,214.68,214.62,11.6482]
[1731811399585,15.64445869,214.64,214.57,16.3114]
[1731811399900,15.64445869,214.64,214.59,4.66]
[1731811400291,15.64445869,214.66,214.59,4.66]
[1731811400504,15.64445869,214.66,214.59,16.3101]
[1731811400875,7.11979504,214.63,214.58,15.64445869]
[1731811401079,7.11979504,214.64,214.59,0.25098]
[1731811401381,7.11979504,214.65,214.59,0.25098]
[1731811401585,22.76425373,214.66,214.59,0.25098]
[1731811401801,7.11979504,214.66,214.6,15.64445869]
[1731811402003,32.02015869,214.7,214.62,15.64445869]
[1731811402506,32.02015869,214.7,214.63,0.25098]
[1731811403204,32.02015869,214.7,214.62,15.64445869]
[1731811403906,15.64445869,214.72,214.65,20.0]
[1731811404105,15.64445869,214.72,214.65,36.3055]
[1731811404304,15.64445869,214.7,214.65,36.3055]
[1731811407120,15.64445869,214.7,214.67,47.83529012]
[1731811407289,15.64445869,214.72,214.69,29.10459755]
[1731811407488,15.64445869,214.72,214.7,29.10459755]
[1731811407909,15.64445869,214.72,214.7,14.54887536]
[1731811409029,20.30175869,214.72,214.7,14.54887536]
[1731811409386,4.6573,214.72,214.69,14.54887536]
[1731811409583,15.2189,214.78,214.7,11.6441]
[1731811409787,30.86335869,214.78,214.76,14.54887536]
[1731811410010,30.86335869,214.78,214.71,34.54887536]
[1731811410200,30.86335869,214.78,214.71,20.0]
[1731811410596,30.86335869,214.78,214.72,4.6572]
[1731811411095,30.86335869,214.78,214.72,16.3002]
[1731811413188,15.64445869,214.75,214.72,11.643]
[1731811413515,15.64445869,214.74,214.72,11.643]
[1731811414589,15.64445869,214.75,214.68,35.64445869]
[1731811414842,15.64445869,214.75,214.68,15.64445869]
[1731811415013,15.64445869,214.73,214.65,15.64445869]
[1731811415203,15.64445869,214.72,214.67,20.0]
[1731811415404,15.64445869,214.7,214.67,20.0]
[1731811415607,15.64445869,214.7,214.65,20.0]
[1731811416115,15.64445869,214.69,214.64,16.3063]
[1731811416420,15.64445869,214.68,214.64,16.3063]
[1731811416599,15.64445869,214.68,214.64,11.6474]
[1731811416927,15.64445869,214.69,214.64,11.6474]
[1731811417089,15.64445869,214.7,214.64,11.6474]
[1731811417290,15.64445869,214.71,214.65,20.12549]
[1731811418098,15.64445869,214.73,214.65,35.76994869]
[1731811418306,15.64445869,214.72,214.65,35.76994869]
[1731811418612,15.64445869,214.72,214.66,16.3048]
[1731811420100,15.64445869,214.74,214.67,15.64445869]
[1731811420401,15.64445869,214.74,214.68,16.3032]
[1731811423216,15.64445869,214.76,214.68,16.3032]
[1731811423420,15.2189,214.78,214.68,16.3032]
[1731811423611,15.64445869,214.76,214.68,16.3032]
[1731811424216,15.64445869,214.76,214.7,16.3017]
[1731811424429,30.86335869,214.78,214.7,16.3017]
[1731811425425,4.6549,214.83,214.71,35.64445869]
[1731811425624,15.64445869,214.79,214.71,35.64445869]
[1731811425798,15.64445869,214.77,214.7,39.59]
[1731811425996,15.64445869,214.77,214.71,20.0]
[1731811426599,15.64445869,214.77,214.72,16.3002]
[1731811428002,15.64445869,214.83,214.76,20.0]
[1731811428214,15.64445869,214.85,214.77,15.89543869]
[1731811428615,15.64445869,214.85,214.78,16.2957]
[1731811429234,16.5139,214.86,214.81,15.64445869]
[1731811429528,15.64445869,214.87,214.79,15.76994869]
[1731811430224,15.64445869,214.86,214.79,15.76994869]
[1731811430426,16.5139,214.91,214.79,15.76994869]
[1731811430427,15.64445869,214.87,214.8,16.2941]
[1731811431498,7.21979504,214.96,214.8,16.2941]
[1731811431499,5.1764805,214.93,214.81,20.0]
[1731811431729,15.64445869,214.88,214.81,20.0]
[1731811432303,15.64445869,214.87,214.81,20.0]
[1731811433502,15.64445869,214.87,214.82,16.2926]
[1731811433699,15.64445869,214.88,214.83,0.12549]
[1731811433903,15.64445869,214.87,214.82,16.2926]
[1731811436113,15.64445869,214.87,214.83,20.0]
[1731811436316,15.64445869,214.88,214.83,20.0]
[1731811437411,15.64445869,214.88,214.84,4.6546]
[1731811437818,15.64445869,214.87,214.84,4.6546]
[1731811439328,15.64445869,214.87,214.82,11.6376]
[1731811439704,13.14445869,214.87,214.82,11.6376]
[1731811439933,15.64445869,214.88,214.82,11.6376]
[1731811440640,15.64445869,214.88,214.82,16.2926]
[1731811441214,15.64445869,214.89,214.82,31.93705869]
[1731811441623,15.64445869,214.9,214.82,31.93705869]
[1731811441820,15.64445869,214.91,214.83,15.64445869]
[1731811442024,15.64445869,214.91,214.84,20.0]
[1731811442227,16.16823919,214.93,214.85,15.76994869]
[1731811442836,16.16823919,214.93,214.86,20.0]
[1731811443213,16.16823919,214.93,214.86,35.64445869]
[1731811443641,15.64445869,214.92,214.86,20.0]
[1731811443839,15.64445869,214.92,214.86,16.2895]
[1731811444916,15.64445869,214.92,214.85,35.76994869]
[1731811444917,0.5237805,214.93,214.88,16.2881]
[1731811445122,0.5237805,214.93,214.88,31.93255869]
[1731811445938,0.5237805,214.93,214.89,35.89543869]
[1731811446137,0.5237805,214.93,214.88,16.2881]
[1731811446339,15.64445869,214.92,214.88,16.2881]
[1731811446736,0.5237805,214.93,214.88,16.2881]
[1731811450947,0.5237805,214.93,214.89,30.22179676]
[1731811451134,0.5237805,214.93,214.9,9.97081676]
[1731811451342,0.5237805,214.93,214.89,20.0]
[1731811451524,9.97081676,214.9,214.84,11.6364]
[1731811451724,9.97081676,214.89,214.84,11.6364]
[1731811451939,0.5237805,214.93,214.85,10.06449138]
[1731811452223,0.5237805,214.93,214.86,9.97081676]
[1731811452637,10.49459726,214.93,214.86,9.97081676]
[1731811453017,10.49459726,214.93,214.88,0.25098]
[1731811453220,0.5237805,214.93,214.88,20.25098]
[1731811454429,0.5237805,214.93,214.89,16.2873]
[1731811456320,10.49459726,214.93,214.85,0.12549]
[1731811456555,10.49459726,214.93,214.84,9.97081676]
[1731811456760,9.97081676,214.89,214.83,16.2919]
[1731811457628,9.97081676,214.87,214.83,11.6371]
[1731811458849,15.59133298,214.88,214.83,11.6371]
[1731811461830,15.59133298,214.86,214.79,18.0147]
[1731811462032,15.59133298,214.86,214.79,16.2947]
[1731811462537,15.59133298,214.86,214.79,11.6392]
[1731811462538,15.59133298,214.84,214.79,11.6392]
[1731811462930,15.59133298,214.84,214.79,16.2949]
[1731811463338,15.59133298,214.84,214.79,11.6392]
[1731811463647,15.59133298,214.82,214.79,11.6392]
[1731811463955,15.59133298,214.82,214.74,15.59133298]
[1731811464131,15.59133298,214.82,214.76,4.6562]
[1731811464451,15.59133298,214.88,214.8,15.59133298]
[1731811465042,15.59133298,214.86,214.79,20.12549]
[1731811465252,15.59133298,214.84,214.77,0.12549]
[1731811465526,15.59133298,214.84,214.78,4.6559]
[1731811465864,15.59133298,214.82,214.78,16.2957]
[1731811466029,15.59133298,214.82,214.78,11.6398]
[1731811467931,15.59133298,214.82,214.75,4.6565]
[1731811468138,15.59133298,214.8,214.74,11.6419]
[1731811468349,15.59133298,214.8,214.74,16.2986]
[1731811468859,15.59133298,214.8,214.74,31.88993298]
[1731811469432,15.59133298,214.8,214.75,0.25098]
[1731811469633,0.1,214.89,214.75,0.25098]
[1731811469634,15.59133298,214.82,214.75,0.25098]
[1731811469957,4.6535,214.89,214.76,15.59133298]
[1731811470133,15.59133298,214.85,214.76,15.59133298]
[1731811471262,15.59133298,214.85,214.78,35.59133298]
[1731811471442,15.59133298,214.86,214.78,35.59133298]
[1731811472559,15.59133298,214.82,214.77,11.6403]
[1731811473734,15.59133298,214.84,214.77,11.6403]
[1731811473932,15.59133298,214.84,214.77,16.2964]
[1731811474762,15.59133298,214.86,214.78,15.59133298]
[1731811474961,15.59133298,214.86,214.79,0.12549]
[1731811475639,15.59133298,214.88,214.8,15.8104976]
[1731811475963,15.59133298,214.88,214.81,0.25098]
[1731811476174,15.59133298,214.88,214.81,20.25098]
[1731811476341,15.59133298,214.9,214.83,16.41739]
[1731811478063,15.59133298,214.92,214.85,0.12549]
[1731811479953,0.5237805,214.93,214.87,0.12549]
[1731811480161,0.5237805,214.93,214.88,4.6537]
[1731811480468,0.5237805,214.93,214.89,0.12549]
[1731811481257,0.5237805,214.93,214.9,0.21916462]
[1731811481473,0.5237805,214.93,214.91,0.25098]
[1731811482471,0.5237805,214.93,214.92,4.77829]
[1731811483964,0.5237805,214.93,214.92,4.99745462]
[1731811484169,0.5237805,214.93,214.92,4.77829]
[1731811484377,16.11511348,214.93,214.89,11.6338]
[1731811485259,0.5237805,214.93,214.9,0.09367462]
[1731811485851,0.5237805,214.93,214.92,0.12549]
[1731811487045,0.5237805,214.93,214.9,4.99785462]
[1731811488371,0.5237805,214.93,214.9,0.12549]
[1731811488872,0.5237805,214.93,214.9,4.77869]
[1731811489073,0.5237805,214.93,214.9,0.12549]
[1731811491675,20.76781348,214.93,214.85,16.2901]
[1731811492045,15.59133298,214.92,214.85,16.2901]
[1731811492471,15.59133298,214.9,214.85,11.6359]
[1731811493047,15.59133298,214.92,214.87,0.21916462]
[1731811493276,15.59133298,214.92,214.88,16.41359]
[1731811494262,0.5237805,214.93,214.88,16.41359]
[1731811494462,0.5237805,214.93,214.91,0.21916462]
[1731811494663,0.5237805,214.93,214.89,31.87853298]
[1731811494871,0.5237805,214.93,214.9,0.12549]
[1731811495176,0.5237805,214.93,214.89,11.6338]
[1731811495544,0.5237805,214.93,214.9,0.12549]
[1731811495747,0.5237805,214.93,214.89,16.2873]
[1731811495748,0.5237805,214.93,214.92,0.12549]
[1731811497577,0.5237805,214.93,214.9,0.12549]
[1731811499155,0.5237805,214.93,214.9,0.25098]
[1731811499460,0.5237805,214.93,214.92,4.90378]
[1731811499651,0.5237805,214.93,214.92,0.12549]
[1731811500285,0.5237805,214.93,214.91,0.12549]
[1731811500574,0.5237805,214.93,214.9,0.12549]
[1731811500791,0.5237805,214.93,214.9,0.25098]
[1731811501477,0.5237805,214.93,214.9,4.90408]
[1731811501682,0.5237805,214.93,214.9,16.53738]
[1731811503482,0.5237805,214.93,214.92,0.34465462]
[1731811504903,0.5237805,214.93,214.92,4.99745462]
[1731811505066,0.5237805,214.93,214.91,0.12549]
[1731811505267,9.97221363,214.92,214.87,4.6537]
[1731811506069,9.97221363,214.92,214.87,16.2886]
[1731811506499,0.5237805,214.93,214.89,9.97221363]
[1731811506792,0.5237805,214.93,214.88,20.0]
[1731811506793,0.5237805,214.93,214.92,4.99745462]
[1731811509701,0.5237805,214.93,214.92,4.77829]
[1731811509877,0.5237805,214.93,214.92,0.12549]
[1731811510195,0.5237805,214.93,214.91,16.2855]
[1731811510374,0.5237805,214.93,214.88,0.25098]
[1731811510590,15.57736384,214.92,214.87,16.2886]
[1731811511395,15.57736384,214.92,214.88,0.09367462]
[1731811511599,0.5237805,214.93,214.88,0.09367462]
[1731811511789,0.5237805,214.93,214.89,4.77899]
[1731811512706,15.57736384,214.9,214.87,11.6347]
[1731811512998,15.57736384,214.88,214.83,11.637]
[1731811513202,15.57736384,214.88,214.83,16.2917]
[1731811513789,15.57736384,214.88,214.83,11.637]
[1731811513991,15.57736384,214.86,214.83,11.637]
[1731811514787,15.57736384,214.86,214.84,0.12549]
[1731811515110,15.57736384,214.86,214.83,11.637]
[1731811515600,15.57736384,214.88,214.83,11.637]
[1731811516310,15.57736384,214.86,214.8,0.25098]
[1731811516505,15.57736384,214.86,214.79,16.2946]
[1731811517302,15.57736384,214.84,214.79,16.2946]
[1731811517814,15.57736384,214.86,214.8,0.09367462]
[1731811518110,15.57736384,214.88,214.82,0.09367462]
[1731811518413,15.0024,214.9,214.86,0.09367462]
[1731811518715,31.43666384,214.96,214.88,0.09367462]
[1731811518927,15.8593,214.96,214.91,15.57736384]
[1731811519209,15.57736384,214.98,214.92,0.34465462]
[1731811519399,15.57736384,214.96,214.92,0.34465462]
[1731811519589,15.57736384,214.96,214.92,0.25098]
[1731811519803,15.57736384,214.94,214.88,0.25098]
[1731811520025,15.57736384,214.94,214.89,0.09367462]
[1731811520185,15.57736384,214.94,214.9,16.2866]
[1731811520393,15.57736384,214.94,214.91,0.25098]
[1731811520583,15.57736384,214.94,214.9,11.6333]
[1731811520804,15.57736384,214.94,214.9,16.2866]
[1731811522111,15.57736384,214.96,214.91,0.34465462]
[1731811522300,15.57736384,215.0,214.92,20.57481846]
[1731811524720,15.57736384,214.98,214.92,4.99745462]
[1731811524902,15.57736384,214.94,214.9,11.6333]
[1731811525913,15.57736384,214.92,214.87,4.6538]
[1731811526417,15.57736384,214.92,214.88,0.09367462]
[1731811526911,15.57736384,214.92,214.87,0.09367462]
[1731811527094,15.57736384,214.9,214.86,11.6354]
[1731811527293,15.57736384,214.88,214.83,4.6546]
[1731811528412,15.57736384,214.9,214.83,0.09367462]
[1731811528725,15.57736384,214.9,214.85,0.21916462]
[1731811529008,15.57736384,214.9,214.86,0.12549]
[1731811529600,15.57736384,214.9,214.86,4.6541]
[1731811529801,15.7993,214.91,214.86,15.57736384]
[1731811530013,20.4524,214.91,214.86,15.57736384]
[1731811530198,15.57736384,214.9,214.83,0.25098]
[1731811530394,15.57736384,214.88,214.8,20.23266384]
[1731811530795,15.57736384,214.9,214.82,15.57736384]
[1731811531203,0.1,214.88,214.82,15.57736384]
[1731811531402,15.77736384,214.9,214.8,15.57736384]
[1731811531618,20.4525,214.91,214.84,15.57736384]
[1731811532125,15.7993,214.91,214.84,15.57736384]
[1731811532434,20.4524,214.91,214.84,15.57736384]
[1731811532790,20.4524,214.91,214.87,15.57736384]
[1731811533795,20.4524,214.91,214.85,15.57736384]
[1731811533992,20.4524,214.91,214.83,15.57736384]
[1731811533993,0.1,214.9,214.83,15.57736384]
[1731811534215,0.1,214.89,214.81,15.57736384]
[1731811534399,15.67736384,214.9,214.83,15.57736384]
[1731811534955,15.67736384,214.9,214.82,15.57736384]
[1731811535426,4.6535,214.89,214.82,15.57736384]
[1731811537025,4.6535,214.89,214.86,15.57736384]
[1731811537935,15.7993,214.91,214.88,15.57736384]
[1731811538095,15.7993,214.91,214.9,15.57736384]
[1731811538919,15.8993,214.91,214.9,15.57736384]
[1731811539135,15.7993,214.91,214.9,15.57736384]
[1731811539715,0.1,214.89,214.77,4.6561]
[1731811540039,4.6533,214.9,214.88,15.57736384]
[1731811540255,0.1,214.89,214.88,15.57736384]
[1731811540840,4.6533,214.9,214.88,15.57736384]
[1731811541219,0.1,214.89,214.88,15.57736384]
[1731811541421,4.6533,214.9,214.88,15.57736384]
[1731811545342,0.1,214.89,214.88,15.57736384]
[1731811545549,4.6533,214.9,214.88,15.57736384]
[1731811546249,0.2,214.89,214.88,15.57736384]
[1731811546449,0.1,214.85,214.72,11.6426]
[1731811546744,21.508,214.86,214.85,15.57736384]
[1731811547347,26.1621,214.86,214.85,15.57736384]
[1731811548650,6.0143,214.9,214.85,15.57736384]
[1731811548953,6.0143,214.9,214.89,15.57736384]
[1731811549158,5.5143,214.9,214.89,15.57736384]
[1731811549523,5.6143,214.9,214.89,15.57736384]
[1731811550124,5.5143,214.9,214.89,15.57736384]
[1731811551741,20.1468,214.91,214.89,15.57736384]
[1731811552949,6.5380805,214.93,214.89,15.57736384]
[1731811553251,6.5380805,214.93,214.92,15.57736384]
[1731811553853,6.5380805,214.93,214.9,15.57736384]
[1731811554647,0.5237805,214.93,214.92,15.57736384]
[1731811555335,0.5237805,214.93,214.92,15.82834384]
[1731811555529,0.5237805,214.93,214.92,15.92201846]
[1731811555738,0.5237805,214.93,214.92,31.4993823]
[1731811556649,0.5237805,214.93,214.92,55.2762663]
[1731811556851,0.5237805,214.93,214.92,59.9290663]
[1731811557657,0.5237805,214.93,214.92,28.77433862]
[1731811557956,0.5237805,214.93,214.92,44.35170246]
[1731811558757,0.5237805,214.93,214.92,59.9290663]
[1731811559334,15.4937,215.07,214.93,44.12153862]
[1731811559538,15.4937,215.07,215.01,15.57736384]
[1731811560132,15.4937,215.07,214.93,44.12153862]
[1731811560133,4.6495,215.08,215.03,15.57736384]
[1731811560336,15.67736384,215.07,215.0,15.57736384]
[1731811560539,15.57736384,215.05,214.98,15.57736384]
[1731811560853,15.67736384,215.07,215.0,15.57736384]
[1731811561230,0.1,215.05,215.0,15.57736384]
[1731811561433,4.6498,215.06,215.0,15.57736384]
[1731811562531,4.6498,215.06,214.96,11.6299]
[1731811562532,4.6498,215.06,214.98,15.57736384]
[1731811562726,15.67736384,215.05,214.96,27.20726384]
[1731811563138,15.77736384,215.05,214.96,15.57736384]
[1731811563340,15.67736384,215.03,214.96,15.57736384]
[1731811564237,4.6507,215.02,214.94,15.57736384]
[1731811564739,4.6507,215.02,214.93,15.57736384]
[1731811564740,15.67736384,215.01,214.93,15.57736384]
[1731811565050,15.57736384,215.0,214.92,15.57736384]
[1731811565255,15.57736384,214.99,214.91,15.57736384]
[1731811565444,15.57736384,214.99,214.93,15.57736384]
[1731811566267,4.652,214.96,214.85,16.2898]
[1731811566441,4.652,214.96,214.89,15.57736384]
[1731811566841,15.57736384,214.95,214.87,15.57736384]
[1731811567480,0.1,214.94,214.87,15.57736384]
[1731811567849,15.57736384,214.93,214.85,15.57736384]
[1731811568750,4.6528,214.92,214.85,15.57736384]
[1731811569088,20.6437,214.92,214.85,15.57736384]
[1731811571387,20.5437,214.92,214.85,15.57736384]
[1731811571882,4.6527,214.93,214.89,15.57736384]
[1731811572378,4.6527,214.93,214.87,15.57736384]
[1731811572585,4.7527,214.93,214.87,15.57736384]
[1731811572756,0.1,214.91,214.85,15.57736384]
[1731811572949,15.77736384,214.91,214.83,15.57736384]
[1731811573174,0.1,214.88,214.81,15.57736384]
[1731811573489,0.1,214.86,214.78,15.57736384]
[1731811573975,0.1,214.86,214.76,11.6405]
[1731811573976,15.57736384,214.86,214.79,15.57736384]
[1731811574574,4.6544,214.85,214.79,15.57736384]
[1731811575870,31.46826384,214.88,214.81,15.57736384]
[1731811576076,15.8909,214.88,214.83,15.57736384]
[1731811576286,15.8909,214.93,214.87,15.57736384]
[1731811576582,15.8909,214.93,214.8,15.67103846]
[1731811576583,20.5436,214.93,214.89,15.57736384]
[1731811576757,20.5436,214.93,214.83,0.25098]
[1731811576953,20.6436,214.93,214.86,15.57736384]
[1731811577155,20.7436,214.93,214.86,15.57736384]
[1731811577375,20.5436,214.93,214.86,15.57736384]
[1731811577565,20.6436,214.93,214.86,15.57736384]
[1731811577772,20.5436,214.93,214.88,15.57736384]
[1731811578681,20.6436,214.93,214.86,15.57736384]
[1731811579387,20.5436,214.93,214.86,15.57736384]
[1731811579760,20.6436,214.93,214.86,15.57736384]
[1731811580286,15.67736384,214.89,214.8,15.57736384]
[1731811581383,4.6537,214.88,214.8,15.57736384]
[1731811581964,4.6537,214.88,214.84,15.57736384]
[1731811582163,4.6528,214.92,214.86,15.57736384]
[1731811582393,15.8909,214.93,214.88,15.57736384]
[1731811582577,20.5436,214.93,214.88,15.57736384]
[1731811583085,15.8909,214.93,214.88,15.57736384]
[1731811583405,15.8909,214.93,214.9,15.57736384]
[1731811583866,6.4167,214.95,214.92,15.57736384]
[1731811584199,23.18293225,214.99,214.94,15.57736384]
[1731811584200,20.6427,214.99,214.94,15.57736384]
[1731811584863,6.6043,215.0,214.98,15.57736384]
[1731811585263,6.6043,215.0,214.96,15.57736384]
[1731811586082,4.6505,215.03,214.98,15.57736384]
[1731811586281,20.6414,215.05,215.0,15.57736384]
[1731811586859,4.6502,215.05,215.0,15.57736384]
[1731811587290,4.6502,215.05,214.98,15.57736384]
[1731811587554,15.57736384,215.02,214.95,15.57736384]
[1731811587794,15.57736384,215.02,214.86,16.575]
[1731811587795,15.67736384,215.0,214.92,15.57736384]
[1731811588161,15.57736384,214.98,214.9,15.57736384]
[1731811588586,0.1,215.0,214.92,15.57736384]
[1731811588587,15.57736384,215.0,214.92,15.57736384]
[1731811588997,15.67736384,215.0,214.92,15.57736384]
[1731811589176,15.57736384,214.98,214.9,15.57736384]
[1731811589505,4.6518,214.97,214.9,15.57736384]
[1731811589704,22.32066384,214.96,214.88,15.57736384]
[1731811589869,15.57736384,214.94,214.86,15.57736384]
[1731811590070,15.67736384,214.94,214.86,15.57736384]
[1731811590391,22.22066384,214.96,214.88,15.57736384]
[1731811591197,22.22066384,214.96,214.86,15.57736384]
[1731811591411,20.22976384,214.94,214.86,15.57736384]
[1731811592635,20.32976384,214.94,214.86,15.57736384]
[1731811593101,20.22976384,214.94,214.86,15.57736384]
[1731811593299,20.22976384,214.94,214.8,15.5446]
[1731811593300,4.6524,214.94,214.88,15.57736384]
[1731811593696,20.32976384,214.94,214.86,15.57736384]
[1731811594095,15.67736384,214.9,214.79,4.6556]
[1731811594297,15.67736384,214.9,214.81,15.57736384]
[1731811594498,15.57736384,214.9,214.83,15.57736384]
[1731811594722,11.84413225,214.94,214.87,15.57736384]
[1731811595042,4.6524,214.94,214.87,15.57736384]
[1731811595812,0.1,214.93,214.87,15.57736384]
[1731811596416,15.57736384,214.92,214.85,15.57736384]
[1731811596613,20.22976384,214.94,214.85,15.57736384]
[1731811596792,20.22976384,214.94,214.87,15.57736384]
[1731811596998,26.5973,214.96,214.89,15.57736384]
[1731811597301,21.9452,214.96,214.91,15.57736384]
[1731811597494,26.5973,214.96,214.91,15.57736384]
[1731811597694,26.5973,214.96,214.89,15.57736384]
[1731811599029,15.57736384,214.92,214.84,15.57736384]
[1731811599399,4.6531,214.91,214.84,15.57736384]
[1731811599832,15.57736384,214.9,214.82,27.21466384]
[1731811600497,15.57736384,214.9,214.82,15.57736384]
[1731811601617,4.6535,214.89,214.82,15.57736384]
[1731811603705,0.1,214.88,214.82,15.57736384]
[1731811605026,27.6811,214.87,214.8,15.57736384]
[1731811606709,15.57736384,214.86,214.78,15.57736384]
[1731811607101,15.67736384,214.81,214.71,16.1271]
[1731811607308,15.67736384,214.76,214.68,15.57736384]
[1731811607539,15.67736384,214.76,214.66,15.57736384]
[1731811607540,15.57736384,214.74,214.66,15.57736384]
[1731811607829,15.57736384,214.74,214.62,11.648]
[1731811607830,15.57736384,214.72,214.64,15.57736384]
[1731811608609,15.57736384,214.75,214.68,15.57736384]
[1731811608836,16.6198,214.77,214.7,24.97891131]
[1731811609013,4.6563,214.76,214.7,24.97891131]
[1731811609214,0.1,214.73,214.66,24.97891131]
[1731811609519,0.1,214.73,214.62,16.3073]
[1731811609520,24.97891131,214.72,214.64,24.97891131]
[1731811610217,0.1,214.75,214.68,24.97891131]
[1731811610403,0.1,214.74,214.68,24.97891131]
[1731811610607,25.07891131,214.74,214.66,24.97891131]
[1731811611101,24.97891131,214.74,214.66,24.97891131]
[1731811611306,4.657,214.73,214.66,24.97891131]
[1731811612317,24.97891131,214.72,214.64,24.97891131]
[1731811612520,4.657,214.73,214.66,24.97891131]
[1731811612732,4.657,214.73,214.59,16.1271]
[1731811612733,0.1,214.71,214.64,24.97891131]
[1731811613230,31.42891131,214.7,214.62,24.97891131]
[1731811613429,36.08651131,214.7,214.62,24.97891131]
[1731811613822,11.1076,214.7,214.62,24.97891131]
[1731811614619,11.1076,214.7,214.64,24.97891131]
[1731811615212,36.08651131,214.7,214.62,24.97891131]
[1731811615443,36.08651131,214.7,214.64,24.97891131]
[1731811615444,11.1076,214.7,214.64,24.97891131]
[1731811615621,11.1076,214.7,214.66,24.97891131]
[1731811616711,6.4833,214.75,214.68,24.97891131]
[1731811616925,6.4833,214.75,214.72,24.97891131]
[1731811617134,6.4833,214.75,214.7,24.97891131]
[1731811617434,6.4833,214.75,214.68,24.97891131]
[1731811618236,31.46221131,214.75,214.68,24.97891131]
[1731811618408,31.46221131,214.75,214.66,24.97891131]
[1731811618611,4.6567,214.74,214.66,24.97891131]
[1731811620611,4.6567,214.74,214.7,24.97891131]
[1731811620824,4.6567,214.74,214.68,24.97891131]
[1731811621042,4.6567,214.74,214.66,24.97891131]
[1731811621238,24.97891131,214.73,214.66,24.97891131]
[1731811621640,4.6567,214.74,214.68,24.97891131]
[1731811621938,4.6567,214.74,214.7,24.97891131]
[1731811622325,6.4833,214.75,214.7,24.97891131]
[1731811622515,16.6198,214.77,214.74,24.97891131]
[1731811622842,6.4833,214.81,214.76,24.97891131]
[1731811623134,6.4833,214.81,214.79,24.97891131]
[1731811623438,17.75478448,214.85,214.79,24.97891131]
[1731811623647,16.1793,214.89,214.84,24.97891131]
[1731811623812,6.259,214.91,214.86,24.97891131]
[1731811623813,10.9122,214.91,214.86,24.97891131]
[1731811624141,10.9122,214.91,214.8,25.22989131]
[1731811624142,6.259,214.91,214.88,24.97891131]
[1731811624449,16.1793,214.94,214.88,24.97891131]
[1731811624815,6.259,214.96,214.9,24.97891131]
[1731811625150,16.1793,215.0,214.92,24.97891131]
[1731811625441,31.23791131,215.01,214.98,24.97891131]
[1731811625442,6.259,215.01,214.98,24.97891131]
[1731811625630,4.6503,215.04,214.98,24.97891131]
[1731811625939,4.6503,215.04,214.96,24.97891131]
[1731811626123,24.97891131,215.01,214.94,24.97891131]